bitfinex/quotes_ETHUSD_20240719
["timestamp","ask_amount","ask_price","bid_price","bid_amount"]
[1721420651797,2.85209,3506.2,3506.1,0.03170997]
[1721420651944,2.85209,3506.2,3505.4,1.055]
[1721420652259,2.85218,3506.1,3505.4,0.5510723]
[1721420652579,2.85218,3506.1,3505.2,2.3577]
[1721420652580,2.85234,3505.9,3505.2,2.3577]
[1721420652875,2.85234,3505.9,3505.2,3.4127]
[1721420653076,2.85218,3506.1,3505.2,3.4127]
[1721420653440,2.85218,3506.1,3505.4,1.055]
[1721420654180,2.85218,3506.1,3505.2,2.3577]
[1721420654354,2.85218,3506.1,3505.2,2.878767]
[1721420654554,2.85218,3506.1,3505.2,5.731657]
[1721420654762,2.85218,3506.1,3505.2,2.878767]
[1721420655063,2.85203,3506.3,3505.2,2.878767]
[1721420655064,2.85225,3506.0,3505.2,2.878767]
[1721420656580,2.85233,3505.9,3505.2,2.878767]
[1721420657355,2.85233,3505.9,3505.3,0.2878767]
[1721420657551,2.85223,3506.1,3505.4,0.03218751]
[1721420657795,2.85206,3506.3,3505.4,0.03218751]
[1721420658093,2.8521,3506.2,3505.4,0.03218751]
[1721420659362,2.85217,3506.1,3505.4,0.03218751]
[1721420659563,2.85217,3506.1,3505.4,0.63736063]
[1721420665485,5.70441,3506.1,3505.4,0.63736063]
[1721420666076,2.85226,3506.0,3505.4,0.63736063]
[1721420666475,2.85226,3506.0,3505.4,0.03218751]
[1721420669078,2.85215,3506.2,3505.4,0.03218751]
[1721420669269,2.85266,3505.5,3505.4,0.03218751]
[1721420669476,5.70532,3505.5,3505.4,0.03218751]
[1721420669668,2.85288,3505.3,3504.3,2.4576]
[1721420669874,2.47782667,3505.2,3503.6,0.44731658]
[1721420670059,2.85362,3504.4,3503.3,2.85444]
[1721420670388,2.85364,3504.3,3503.3,2.85444]
[1721420671704,2.85341,3504.6,3503.5,2.85423]
[1721420671995,2.85341,3504.6,3503.7,2.4158]
[1721420672552,2.85341,3504.6,3503.8,0.02789785]
[1721420673688,2.85331,3504.7,3503.8,0.02789785]
[1721420673871,2.85323,3504.8,3503.8,2.88192785]
[1721420674073,2.85323,3504.8,3503.9,0.84372608]
[1721420674475,2.85323,3504.8,3504.0,0.02782529]
[1721420675717,2.85294,3505.2,3504.0,0.08489469]
[1721420675991,2.85308,3505.0,3504.0,2.88165529]
[1721420676197,2.85308,3505.0,3504.1,0.95793814]
[1721420676404,2.85308,3505.0,3504.2,0.02772699]
[1721420677666,2.85294,3505.2,3504.2,2.88143699]
[1721420683113,2.85276,3505.4,3504.3,2.85356]
[1721420683270,2.85276,3505.4,3504.4,2.3399]
[1721420683465,2.85245,3505.8,3504.7,2.8533]
[1721420683671,2.85254,3505.7,3504.7,2.8533]
[1721420683885,2.85254,3505.7,3504.8,0.02763461]
[1721420684088,2.85238,3505.9,3504.8,2.88078461]
[1721420684321,2.85238,3505.9,3504.9,3.14119846]
[1721420684499,0.89483853,3506.1,3505.2,2.85285]
[1721420684671,0.89483853,3506.1,3505.2,2.2777]
[1721420684871,0.89483853,3506.1,3505.3,0.02742408]
[1721420685087,0.89483853,3506.1,3505.3,0.82852149]
[1721420685285,0.89483853,3506.1,3505.3,3.68131149]
[1721420687515,0.89483853,3506.1,3505.5,2.85259]
[1721420687821,0.89483853,3506.1,3505.6,0.02721941]
[1721420689084,2.92360773,3506.0,3505.6,0.02721941]
[1721420689384,2.85238,3505.9,3505.7,0.02892424]
[1721420689801,2.85238,3505.9,3505.8,0.02696089]
[1721420690375,2.85238,3505.9,3505.0,3.0]
[1721420690578,2.85238,3505.9,3505.1,0.02725671]
[1721420691009,2.85218,3506.1,3505.1,2.88022671]
[1721420691346,2.85204,3506.3,3505.1,2.88022671]
[1721420691476,2.85204,3506.3,3505.2,0.58802267]
[1721420691679,2.85199,3506.4,3505.3,2.85282]
[1721420691877,2.85199,3506.4,3505.4,2.85269]
[1721420692112,3.74657853,3506.7,3505.4,2.2683]
[1721420692315,2.85174,3506.7,3505.5,0.02903198]
[1721420692617,2.85187,3506.5,3505.5,3.41433472]
[1721420692787,2.85187,3506.5,3505.5,3.41437472]
[1721420694375,2.85174,3506.7,3505.6,2.8525]
[1721420694572,2.85176,3506.6,3505.7,0.0331729]
[1721420694990,2.85174,3506.7,3505.7,3.73959046]
[1721420695210,2.8516,3506.8,3505.8,2.85237]
[1721420695390,2.8516,3506.8,3505.9,0.03304722]
[1721420695703,2.8516,3506.8,3505.8,2.85235]
[1721420695892,0.89483853,3506.9,3505.9,3.22289776]
[1721420696126,2.85154,3506.9,3505.9,3.25594498]
[1721420697633,5.70313,3506.9,3505.9,3.25594498]
[1721420697838,2.85154,3506.9,3506.0,2.85225]
[1721420698037,2.85154,3506.9,3506.1,0.03295663]
[1721420698398,0.89483853,3507.0,3506.1,0.03295663]
[1721420698894,0.89483853,3507.0,3506.3,2.852]
[1721420699094,2.85121,3507.3,3506.3,2.852]
[1721420699332,2.85121,3507.3,3506.4,0.03278569]
[1721420699639,2.8513,3507.2,3506.4,0.03278569]
[1721420700998,2.85144,3507.0,3506.1,2.88332244]
[1721420701200,2.85144,3507.0,3506.2,0.64348928]
[1721420701415,2.85173,3506.7,3506.2,0.03287626]
[1721420701624,3.8173384,3507.3,3505.2,5.12535]
[1721420701625,2.852,3506.4,3505.2,5.12535]
[1721420701825,2.85209,3506.2,3505.2,5.12533]
[1721420702139,2.852,3506.4,3505.5,2.85265]
[1721420702299,2.85184,3506.5,3505.5,2.85265]
[1721420702498,2.85185,3506.5,3505.6,3.45952247]
[1721420702721,2.85193,3506.4,3505.6,0.60695247]
[1721420703412,1.19012408,3506.9,3505.6,0.60695247]
[1721420703413,2.85206,3506.3,3505.6,0.60695247]
[1721420704861,2.85201,3506.3,3505.6,0.60695247]
[1721420705140,2.85201,3506.3,3505.6,0.0331013]
[1721420705340,2.85209,3506.2,3505.6,0.0331013]
[1721420705554,2.85209,3506.2,3505.3,2.85276]
[1721420705857,2.85247,3505.8,3505.2,2.2725]
[1721420706145,2.85247,3505.8,3505.4,0.0332153]
[1721420706317,0.07131354,3506.0,3505.3,0.03326061]
[1721420706521,2.85319,3504.9,3504.2,2.3737]
[1721420706744,2.85319,3504.9,3504.3,0.76262855]
[1721420706909,2.85323,3504.8,3504.2,2.3737]
[1721420707119,2.85336,3504.7,3503.7,2.3737]
[1721420707311,2.8534,3504.6,3503.7,2.3737]
[1721420708213,2.85325,3504.8,3503.8,2.85397]
[1721420709460,2.85293,3505.2,3503.7,2.3737]
[1721420709761,2.85293,3505.2,3503.8,0.49077]
[1721420709958,2.85293,3505.2,3504.2,2.85365]
[1721420710194,2.85243,3505.8,3504.3,2.534]
[1721420710390,2.85226,3506.0,3504.9,2.85313]
[1721420710599,2.85233,3505.9,3505.0,0.285313]
[1721420711409,2.85218,3506.1,3505.0,3.138363]
[1721420711691,2.85225,3506.0,3505.0,3.138363]
[1721420712690,2.85203,3506.3,3505.0,0.285313]
[1721420712858,2.85203,3506.3,3505.2,2.85284]
[1721420713184,2.85203,3506.3,3505.3,0.37086324]
[1721420713393,2.85203,3506.3,3505.3,0.34454844]
[1721420713862,2.85219,3506.1,3505.3,0.34454844]
[1721420714194,0.96614918,3506.5,3505.3,0.03073314]
[1721420714484,2.85288,3505.3,3504.3,2.4547]
[1721420714689,2.85288,3505.3,3504.0,2.85387]
[1721420714690,2.85306,3505.0,3504.0,2.85387]
[1721420714894,2.85306,3505.0,3504.4,0.03110967]
[1721420715195,2.85323,3504.8,3503.8,5.79949]
[1721420715372,2.85323,3504.8,3504.5,0.02884869]
[1721420715686,2.85323,3504.8,3503.9,0.579949]
[1721420716162,2.85323,3504.8,3504.0,0.029043]
[1721420716363,2.85315,3504.9,3504.0,0.029043]
[1721420717164,2.85304,3505.1,3504.0,3.029043]
[1721420717369,2.85306,3505.0,3504.1,3.8092362]
[1721420717556,2.85306,3505.0,3504.1,0.9554462]
[1721420717766,2.85306,3505.0,3504.2,0.02738403]
[1721420719071,2.8532,3504.9,3504.2,0.02738403]
[1721420721013,2.85298,3505.1,3504.2,0.02738403]
[1721420721214,2.85298,3505.1,3504.3,0.96904702]
[1721420721389,2.85307,3505.0,3504.3,0.96904702]
[1721420721721,2.85307,3505.0,3504.4,0.02731149]
[1721420723105,2.85297,3505.2,3504.4,0.02731149]
[1721420723305,2.85282,3505.3,3504.4,0.02731149]
[1721420723507,2.8529,3505.2,3504.4,0.02731149]
[1721420723708,2.85282,3505.3,3504.4,0.02731149]
[1721420724010,2.85321,3504.9,3504.4,0.02731149]
[1721420724376,2.85321,3504.9,3504.0,2.85386]
[1721420724627,2.85321,3504.9,3504.5,0.02727522]
[1721420724919,2.85305,3505.1,3504.6,0.02723896]
[1721420725278,2.85305,3505.1,3504.1,2.85379]
[1721420725479,2.85305,3505.1,3504.7,0.02720269]
[1721420725798,2.85305,3505.1,3504.1,2.85379]
[1721420726003,2.85305,3505.1,3504.8,0.02716643]
[1721420726216,2.85305,3505.1,3504.2,0.9823907]
[1721420726509,2.85305,3505.1,3504.3,0.02734776]
[1721420727213,2.85283,3505.3,3504.3,0.02734776]
[1721420727881,2.85283,3505.3,3503.9,3.0]
[1721420728215,2.85283,3505.3,3504.4,0.02731149]
[1721420728381,2.85283,3505.3,3504.0,1.07072855]
[1721420728584,2.85267,3505.5,3504.5,0.02727522]
[1721420728783,2.85267,3505.5,3504.4,2.85349]
[1721420728979,2.85267,3505.5,3504.6,0.02723896]
[1721420729276,2.85267,3505.5,3504.4,2.85349]
[1721420729506,2.85267,3505.5,3504.5,0.285349]
[1721420729814,2.85267,3505.5,3504.5,0.31258209]
[1721420730003,2.85267,3505.5,3504.5,3.16604209]
[1721420730203,2.85275,3505.4,3504.5,3.16604209]
[1721420730713,2.85282,3505.3,3504.5,0.31258209]
[1721420731013,2.85298,3505.1,3504.5,0.02723309]
[1721420731382,2.85298,3505.1,3504.2,2.85366]
[1721420731583,2.85298,3505.1,3504.6,0.02720736]
[1721420731898,2.85298,3505.1,3504.7,0.02717109]
[1721420732279,2.85298,3505.1,3504.2,2.85366]
[1721420732490,2.85298,3505.1,3504.8,0.02713483]
[1721420732709,2.85298,3505.1,3504.2,3.724413]
[1721420733019,2.85298,3505.1,3504.9,0.02709858]
[1721420733206,2.85298,3505.1,3504.2,3.724413]
[1721420733605,2.85286,3505.3,3504.3,2.88095318]
[1721420733808,2.85276,3505.4,3504.4,0.66053662]
[1721420734004,2.85276,3505.4,3504.4,3.51403662]
[1721420734306,2.85276,3505.4,3504.6,2.2602]
[1721420734724,2.85282,3505.3,3504.7,0.02717929]
[1721420735219,2.85295,3505.2,3504.7,0.02717929]
[1721420735607,2.92438751,3505.1,3504.7,0.02717929]
[1721420735914,2.92438751,3505.1,3504.2,2.4321]
[1721420735915,2.85306,3505.1,3504.2,2.4321]
[1721420736216,2.85306,3505.1,3504.8,0.02713483]
[1721420736380,2.85306,3505.1,3504.2,2.4321]
[1721420736579,2.85306,3505.0,3504.9,0.02709858]
[1721420736817,2.85326,3504.8,3503.8,8.10661553]
[1721420737003,2.85326,3504.8,3503.9,0.52766171]
[1721420737207,2.85326,3504.8,3503.9,3.40906296]
[1721420737524,5.70619,3505.0,3504.0,2.85386]
[1721420737687,2.85306,3505.0,3504.0,2.85386]
[1721420737883,2.85306,3505.0,3504.1,0.0273887]
[1721420738117,2.85294,3505.2,3504.2,3.19457504]
[1721420738492,2.85288,3505.3,3504.3,2.88094616]
[1721420739804,3.74740853,3505.6,3504.6,2.85332]
[1721420740004,2.85251,3505.7,3504.5,2.85339]
[1721420740005,2.85274,3505.4,3504.5,2.85339]
[1721420740229,2.85274,3505.4,3504.7,0.02717109]
[1721420740413,2.85274,3505.4,3504.6,0.02720736]
[1721420740744,2.85274,3505.4,3504.7,0.54075083]
[1721420740903,2.85265,3505.6,3504.7,0.54075083]
[1721420741699,2.8527,3505.5,3504.7,0.54075083]
[1721420745556,2.85274,3505.4,3504.7,0.54075083]
[1721420747335,3.74757853,3505.4,3504.7,0.54075083]
[1721420747641,2.85274,3505.4,3504.7,0.54075083]
[1721420747896,3.74757853,3505.4,3504.7,0.54075083]
[1721420748541,0.89483853,3505.3,3504.7,0.54075083]
[1721420748741,2.85274,3505.4,3504.7,0.54075083]
[1721420748742,3.74757853,3505.4,3504.7,0.54075083]
[1721420749377,0.89483853,3505.4,3504.7,0.54075083]
[1721420751246,0.89483853,3505.3,3504.7,0.54075083]
[1721420752186,2.85312,3505.0,3504.7,0.02717109]
[1721420752385,3.74805853,3504.8,3504.7,0.02717109]
[1721420752584,2.85339,3504.6,3504.0,2.3097]
[1721420752897,3.75108857,3504.6,3504.1,0.03089038]
[1721420754897,2.85339,3504.6,3504.1,0.03089038]
[1721420755803,3.75101857,3504.7,3504.1,0.03089038]
[1721420756005,0.89769857,3504.5,3504.1,0.03089038]
[1721420756299,0.89769857,3504.4,3504.1,0.03089038]
[1721420756450,2.85384,3504.1,3503.1,5.25258553]
[1721420756651,2.85402,3503.9,3503.2,0.66913308]
[1721420757205,2.85384,3504.1,3503.2,0.66913308]
[1721420757372,2.85388,3504.0,3503.2,0.66913308]
[1721420757694,0.89769857,3504.2,3503.2,3.52365308]
[1721420757860,3.75131857,3504.4,3503.5,2.85421]
[1721420758062,0.89769857,3504.4,3503.6,2.3289]
[1721420758400,0.89769857,3504.5,3503.6,2.3289]
[1721420759019,3.75116857,3504.5,3503.6,5.1831]
[1721420759600,0.89769857,3504.4,3503.6,5.1831]
[1721420759785,0.89769857,3504.4,3503.7,0.51831]
[1721420760308,3.75116857,3504.5,3503.7,0.51831]
[1721420760497,0.89769857,3504.4,3503.7,0.51831]
[1721420761260,3.75116857,3504.5,3503.7,0.51831]
[1721420762112,0.89769857,3504.5,3503.8,2.85398]
[1721420762262,0.89769857,3504.6,3503.9,3.424059]
[1721420762464,4.04336408,3504.8,3503.9,3.424059]
[1721420762465,0.89769857,3504.8,3504.0,2.3474]
[1721420762783,1.19012408,3504.9,3504.0,2.3474]
[1721420762784,0.89769857,3505.1,3504.3,2.85357]
[1721420763286,0.89769857,3505.2,3504.4,0.02868774]
[1721420763608,0.89769857,3505.2,3504.5,0.28822577]
[1721420764041,0.89769857,3505.1,3504.6,0.03078783]
[1721420764215,0.89769857,3505.2,3504.6,0.03078783]
[1721420764917,3.75056857,3505.3,3504.6,0.03078783]
[1721420765087,0.89769857,3505.2,3504.6,0.34804019]
[1721420765288,3.75056857,3505.3,3504.6,0.34804019]
[1721420766296,3.75060857,3505.2,3504.6,0.34804019]
[1721420766559,0.89769857,3505.1,3504.6,0.03078783]
[1721420766811,0.89769857,3505.1,3504.0,2.3474]
[1721420766983,0.89769857,3505.1,3504.7,0.03074599]
[1721420767316,3.75065857,3505.2,3504.8,0.03070415]
[1721420767477,3.75065857,3505.2,3504.2,2.8537]
[1721420767675,3.75065857,3505.2,3504.3,1.13640437]
[1721420768314,3.75065857,3505.2,3504.3,3.99002437]
[1721420769586,0.89769857,3505.2,3504.4,2.85354]
[1721420769809,3.75052857,3505.3,3504.4,2.88438452]
[1721420769979,3.75052857,3505.3,3504.5,0.39898755]
[1721420770180,3.75052857,3505.3,3504.5,0.42979023]
[1721420770396,3.75052857,3505.3,3504.5,0.03080268]
[1721420770621,2.85328,3504.8,3504.5,0.03080268]
[1721420770941,3.75082857,3505.0,3504.1,2.85375]
[1721420771248,2.85313,3505.0,3504.6,0.02856363]
[1721420771397,2.85313,3505.0,3504.1,2.85375]
[1721420771591,2.85313,3505.0,3504.7,0.03069198]
[1721420771811,2.85313,3505.0,3504.2,1.1625139]
[1721420772038,2.85313,3505.0,3504.8,0.03066635]
[1721420772246,2.85313,3505.0,3504.2,1.1625139]
[1721420772538,3.75082857,3505.0,3504.3,0.03087692]
[1721420772920,2.85315,3504.9,3504.3,0.03087692]
[1721420773268,2.85326,3504.8,3504.3,0.03087692]
[1721420773413,2.85332,3504.7,3504.3,0.03087692]
[1721420773601,2.85332,3504.7,3504.0,5.3474]
[1721420773792,2.85332,3504.7,3504.4,0.02863507]
[1721420773998,2.85332,3504.7,3504.0,5.3474]
[1721420774200,2.85332,3504.7,3504.5,0.02859621]
[1721420774450,2.85371,3504.2,3503.5,2.492]
[1721420774598,2.85376,3504.2,3503.5,2.492]
[1721420774804,0.89769857,3504.6,3503.6,3.388834]
[1721420774805,0.89769857,3504.5,3503.6,3.388834]
[1721420775428,3.75117857,3504.5,3503.6,3.388834]
[1721420776508,2.85355,3504.4,3503.6,0.534644]
[1721420777844,2.85355,3504.4,3503.7,0.02890713]
[1721420778019,2.85373,3504.2,3503.7,0.02890713]
[1721420778534,2.8538,3504.1,3503.7,0.02890713]
[1721420778740,2.8538,3504.1,3503.5,2.492]
[1721420778919,2.8538,3504.1,3503.8,0.02886826]
[1721420779133,2.8538,3504.1,3503.5,2.492]
[1721420779333,2.85395,3504.0,3503.9,0.02882939]
[1721420779558,2.85395,3504.0,3503.5,2.492]
[1721420779712,2.85395,3504.0,3503.9,0.02690743]
[1721420779917,2.85395,3504.0,3503.2,3.0]
[1721420780117,2.85395,3504.0,3503.9,0.02690743]
[1721420780337,2.85398,3503.9,3503.2,3.0]
[1721420780548,2.85398,3503.9,3503.1,5.2814]
[1721420780922,2.8538,3504.1,3503.1,8.13599]
[1721420781132,2.8538,3504.1,3503.2,2.85453]
[1721420781332,2.8538,3504.1,3503.3,4.099056]
[1721420781515,5.70767,3504.1,3503.3,4.099056]
[1721420781720,2.8538,3504.1,3503.3,4.099056]
[1721420782077,2.85364,3504.3,3503.3,4.099056]
[1721420782361,2.85356,3504.4,3503.5,2.85428]
[1721420782543,2.85356,3504.4,3503.6,0.9410336]
[1721420783260,2.85349,3504.5,3503.7,2.3898]
[1721420783473,2.85348,3504.5,3503.7,2.3898]
[1721420783676,5.70719,3504.4,3503.7,2.3898]
[1721420783822,2.85356,3504.4,3503.8,0.33308336]
[1721420784019,2.85364,3504.3,3503.8,0.33308336]
[1721420784226,2.85383,3504.1,3503.7,2.3898]
[1721420785156,2.85383,3504.1,3503.3,6.488856]
[1721420786757,2.85383,3504.1,3503.3,9.343296]
[1721420787258,2.85366,3504.3,3503.4,2.85435]
[1721420788358,2.85351,3504.5,3503.6,2.85416]
[1721420788565,3.75103857,3504.7,3503.7,3.424961]
[1721420788858,2.8534,3504.6,3503.7,3.424961]
[1721420789259,2.8534,3504.6,3503.8,2.3943]
[1721420789563,3.75099857,3504.8,3503.8,5.24833]
[1721420789860,2.85307,3505.0,3504.0,2.85381]
[1721420790059,2.85307,3505.0,3504.1,3.664001]
[1721420790229,0.89769857,3505.1,3504.2,2.8537]
[1721420790429,2.85296,3505.2,3504.3,2.3943]
[1721420790629,2.85296,3505.2,3504.3,5.24788]
[1721420790963,2.85296,3505.2,3504.4,0.8911791]
[1721420791322,0.89769857,3505.3,3503.9,2.85393]
[1721420791323,2.485,3505.1,3503.9,2.85393]
[1721420791528,2.85332,3504.7,3503.5,2.85428]
[1721420791763,0.89769857,3504.8,3503.8,2.3943]
[1721420791947,3.75086857,3504.9,3503.9,2.85395]
[1721420792343,2.85324,3504.8,3504.0,0.03534646]
[1721420792883,2.85311,3505.0,3504.1,2.85378]
[1721420793243,2.85311,3505.0,3504.2,0.03883009]
[1721420795283,0.89769857,3504.9,3504.2,0.03883009]
[1721420795588,2.85346,3504.6,3503.8,5.3943]
[1721420795894,2.85347,3504.5,3504.3,0.03520922]
[1721420796191,2.85337,3504.7,3504.4,0.03515976]
[1721420796383,2.85337,3504.7,3503.8,9.073171]
[1721420796595,0.89769857,3504.8,3504.5,0.03511031]
[1721420796754,0.89769857,3505.1,3504.3,2.85358]
[1721420797088,4.34767657,3505.4,3504.6,2.88845086]
[1721420797089,0.89769857,3505.4,3504.6,2.88845086]
[1721420797296,0.89769857,3505.4,3504.6,2.85339]
[1721420797514,2.8527,3505.5,3504.6,2.85339]
[1721420797515,3.75039857,3505.5,3504.7,0.03851255]
[1721420797947,3.75039857,3505.5,3504.6,2.85339]
[1721420798144,2.8527,3505.5,3504.8,0.03845816]
[1721420798347,2.8527,3505.5,3504.7,0.805563]
[1721420798348,2.8527,3505.5,3504.7,0.84407555]
[1721420798550,0.89769857,3505.6,3504.8,2.85321]
[1721420798850,0.89769857,3505.6,3504.8,2.89166816]
[1721420799091,3.75019857,3505.7,3504.8,2.89166816]
[1721420799385,3.75019857,3505.7,3504.8,3.78160028]
[1721420801760,0.89769857,3505.6,3504.8,3.78160028]
[1721420802084,0.89769857,3505.7,3504.8,0.92839028]
[1721420802287,0.89769857,3505.7,3504.9,2.85309]
[1721420802601,0.89769857,3505.8,3505.0,0.41649742]
[1721420802803,2.85237,3505.9,3505.0,0.41649742]
[1721420802804,3.75006857,3505.9,3505.0,0.41649742]
[1721420803496,2.85237,3505.9,3505.0,0.41649742]
[1721420803998,2.85237,3505.9,3505.1,2.2946]
[1721420804239,3.75006857,3505.9,3505.1,2.2946]
[1721420804393,3.75006857,3505.9,3505.2,0.03824063]
[1721420804589,2.85241,3505.8,3505.2,0.03824063]
[1721420804911,2.85249,3505.7,3505.2,0.03824063]
[1721420805622,2.85267,3505.5,3505.2,0.03824063]
[1721420805914,2.85267,3505.5,3504.7,5.14784]
[1721420805915,2.85249,3505.7,3504.7,8.00107]
[1721420806114,2.85249,3505.7,3505.3,0.04226378]
[1721420806312,2.85257,3505.6,3504.8,0.800107]
[1721420806837,2.85279,3505.4,3504.9,0.04250547]
[1721420807017,5.70543,3505.5,3504.9,0.04250547]
[1721420807221,2.85274,3505.4,3504.9,0.04250547]
[1721420807425,2.85263,3505.6,3504.9,0.04250547]
[1721420807739,2.85263,3505.6,3504.9,0.64156372]
[1721420808225,2.85267,3505.5,3504.9,0.64156372]
[1721420808401,2.85267,3505.5,3504.9,0.04250547]
[1721420808802,0.89769857,3505.8,3504.9,0.04250547]
[1721420809039,3.75005857,3505.9,3504.9,0.04250547]
[1721420809321,2.85236,3505.9,3504.7,2.2946]
[1721420809528,2.85236,3505.9,3504.8,0.22946]
[1721420809694,2.85236,3505.9,3504.8,0.2720259]
[1721420809894,2.85236,3505.9,3505.0,2.85302]
[1721420810293,2.85236,3505.9,3505.1,0.04238462]
[1721420810930,3.74989857,3506.1,3505.2,2.85289]
[1721420811144,2.8522,3506.1,3505.4,2.3055]
[1721420811491,2.8522,3506.1,3505.5,0.04214296]
[1721420812406,5.70444,3506.1,3505.5,0.04214296]
[1721420812607,2.8522,3506.1,3505.5,0.04214296]
[1721420813439,0.89769857,3506.4,3505.5,3.41484626]
[1721420813604,3.74962857,3506.4,3505.5,3.41484626]
[1721420813989,2.85193,3506.4,3505.5,3.41484626]
[1721420814543,6.60162857,3506.4,3505.5,3.41484626]
[1721420814707,3.74962857,3506.4,3505.5,3.41484626]
[1721420814904,3.74962857,3506.4,3505.6,0.85731563]
[1721420815116,6.60162857,3506.4,3505.6,0.85731563]
[1721420815315,2.85201,3506.3,3505.7,0.04181396]
[1721420815563,2.85212,3506.2,3505.7,0.04181396]
[1721420816005,2.85254,3505.7,3504.9,2.4859]
[1721420816205,2.85254,3505.7,3504.9,5.4859]
[1721420816458,2.85254,3505.7,3504.9,7.14506855]
[1721420816904,2.85258,3505.6,3504.9,4.14506855]
[1721420817116,0.07131844,3505.5,3504.2,2.4859]
[1721420817345,0.07131844,3505.5,3504.2,5.4859]
[1721420817346,2.85315,3504.9,3504.2,5.4859]
[1721420817532,2.85303,3505.1,3504.2,2.4859]
[1721420817839,2.85321,3504.9,3504.3,0.533964]
[1721420818044,2.85331,3504.7,3504.2,2.4859]
[1721420818208,2.8534,3504.6,3503.7,2.4859]
[1721420818722,2.85346,3504.6,3503.7,2.4859]
[1721420818922,2.85357,3504.4,3503.7,2.4859]
[1721420819220,2.85357,3504.4,3503.7,3.019926]
[1721420820127,2.85357,3504.4,3503.8,3.0]
[1721420820333,2.85325,3504.8,3503.8,5.85403]
[1721420820542,2.85339,3504.6,3503.8,3.0]
[1721420820745,2.85339,3504.6,3503.9,0.8874076]
[1721420822624,2.85339,3504.6,3504.0,0.03881282]
[1721420824052,5.70654,3504.8,3504.0,0.03881282]
[1721420824471,2.85331,3504.7,3504.0,0.03881282]
[1721420826062,3.75066857,3505.2,3504.0,0.03881282]
[1721420826063,2.85355,3504.4,3504.0,0.03881282]
[1721420826264,2.85355,3504.4,3503.7,2.4859]
[1721420826265,2.85368,3504.3,3503.7,2.4859]
[1721420826570,2.85371,3504.2,3504.1,0.03525243]
[1721420826739,2.8538,3504.1,3503.3,5.25749]
[1721420826927,2.8538,3504.1,3503.4,0.525749]
[1721420827928,2.8538,3504.1,3503.4,3.525749]
[1721420829461,2.85389,3504.0,3503.4,3.0]
[1721420829626,2.85389,3504.0,3503.3,5.4031]
[1721420831072,2.8536,3504.4,3503.5,2.85427]
[1721420831367,2.8536,3504.4,3503.5,2.85424]
[1721420831892,2.85364,3504.3,3503.6,1.111178]
[1721420833482,2.8536,3504.4,3503.6,1.111178]
[1721420834695,0.89769857,3504.8,3503.6,1.111178]
[1721420834696,2.85338,3504.7,3503.6,1.111178]
[1721420834881,2.85338,3504.7,3503.7,2.85411]
[1721420835082,2.85341,3504.6,3503.8,0.6819498]
[1721420835297,0.89769857,3504.9,3504.0,2.4785]
[1721420835464,2.8529,3505.2,3504.0,2.4785]
[1721420835792,2.85315,3504.9,3504.0,2.4785]
[1721420835953,2.85315,3504.9,3504.1,0.90143298]
[1721420836152,2.85322,3504.8,3504.1,0.90143298]
[1721420836403,2.85336,3504.7,3503.9,3.0]
[1721420836554,0.89769857,3505.0,3503.8,3.0]
[1721420836555,2.85341,3504.6,3503.8,3.0]
[1721420837188,2.85369,3504.3,3503.5,2.4785]
[1721420837898,2.85369,3504.3,3503.6,0.03265242]
[1721420839568,2.85353,3504.5,3503.6,0.03265242]
[1721420839767,2.85343,3504.6,3503.7,0.55111524]
[1721420840048,2.85343,3504.6,3503.8,0.03552187]
[1721420840653,5.70719,3504.4,3503.8,0.03552187]
[1721420840860,2.85356,3504.4,3503.8,0.03552187]
[1721420841057,2.85356,3504.4,3503.5,5.33278]
[1721420841299,2.85356,3504.4,3503.9,0.0354724]
[1721420841460,2.85356,3504.4,3503.6,1.118707]
[1721420841993,2.85356,3504.4,3503.7,0.03260706]
[1721420844088,2.85343,3504.6,3503.7,0.03260706]
[1721420844395,2.3367,3504.7,3503.8,2.85403]
[1721420844686,2.85341,3504.6,3503.8,0.97287747]
[1721420846089,2.85341,3504.6,3503.8,3.82690747]
[1721420846305,5.1898,3505.0,3503.8,3.82684747]
[1721420846507,2.8531,3505.0,3503.8,0.97287747]
[1721420846706,2.8531,3505.0,3504.1,2.85379]
[1721420847211,2.8531,3505.0,3504.2,0.03532717]
[1721420849906,0.89769857,3505.2,3504.2,2.49142717]
[1721420850098,2.853,3505.1,3504.3,0.53451472]
[1721420850293,3.75056857,3505.3,3504.3,3.42341243]
[1721420850494,2.85287,3505.3,3504.3,3.42341243]
[1721420850694,0.89769857,3505.4,3504.3,0.56979243]
[1721420851010,3.75011857,3505.8,3504.9,5.3092]
[1721420851210,2.85233,3505.9,3504.9,5.3092]
[1721420851412,2.85233,3505.9,3505.0,0.03833715]
[1721420851705,3.74987857,3506.1,3505.0,0.03833715]
[1721420851706,2.85242,3505.8,3505.0,0.03833715]
[1721420852111,3.75000857,3506.0,3505.0,2.89139715]
[1721420852313,2.85231,3506.0,3505.0,2.89139715]
[1721420852474,2.85231,3506.0,3505.1,2.85297]
[1721420852819,2.85231,3506.0,3505.1,2.89125277]
[1721420853912,2.3464,3506.2,3505.2,2.85289]
[1721420854118,1.19012408,3506.4,3505.5,2.85265]
[1721420854119,3.74962857,3506.4,3505.5,2.85265]
[1721420854338,3.74962857,3506.4,3505.2,2.85286]
[1721420854339,2.85201,3506.3,3505.2,2.85286]
[1721420854508,2.85201,3506.3,3505.6,0.0421429]
[1721420854815,0.89769857,3506.4,3505.7,0.04208249]
[1721420855383,3.74962857,3506.4,3505.7,0.04208249]
[1721420855724,2.85193,3506.4,3505.7,0.04208249]
[1721420856013,0.89769857,3506.5,3505.7,0.04208249]
[1721420856219,3.74955857,3506.5,3505.7,0.04208249]
[1721420856429,0.89769857,3506.5,3505.7,0.04208249]
[1721420856632,3.74944857,3506.7,3505.7,3.70073374]
[1721420857331,3.74944857,3506.7,3505.7,2.89455249]
[1721420857475,2.85175,3506.7,3505.7,2.89455249]
[1721420860867,2.8516,3506.8,3505.9,2.85232]
[1721420861155,2.8516,3506.8,3506.0,0.04672749]
[1721420861545,2.85146,3507.0,3506.0,0.62187924]
[1721420861750,3.74896857,3507.2,3506.2,2.2577]